[Event "Titled Tuesday Blitz January 10 Early 2023"]
[White "Qashashvili, Alexandre"]
[Black "Ibarra Jerez, Jose Carlos"]
[WhiteFideId "13600842"]
[BlackFideId "2226332"]
[WhiteElo "2505"]
[BlackElo "2563"]
[Result "1/2-1/2"]
[Round "11"]
[TimeControl "180+2"]
[Date "2023.01.10"]
[WhiteClock "0:00:09"]
[BlackClock "0:00:39"]

1. e4 {[%clk 0:02:57]}  c5 {[%clk 0:03:00]} 2. Nc3 {[%clk 0:02:57]}  a6 {[%clk 0:03:00]} 3. Nf3 {[%clk 0:02:57]}  b5 {[%clk 0:03:00]} 4. a3 {[%clk 0:02:56]}  Bb7 {[%clk 0:03:00]} 5. d3 {[%clk 0:02:53]}  e6 {[%clk 0:03:01]} 6. g3 {[%clk 0:02:53]}  d6 {[%clk 0:03:00]} 7. Bg2 {[%clk 0:02:53]}  Nf6 {[%clk 0:03:01]} 8. O-O {[%clk 0:02:53]}  Nbd7 {[%clk 0:03:02]} 9. Re1 {[%clk 0:02:53]}  Qc7 {[%clk 0:03:01]} 10. h3 {[%clk 0:02:53]}  Be7 {[%clk 0:03:01]} 11. Be3 {[%clk 0:02:52]}  O-O {[%clk 0:03:02]} 12. Qd2 {[%clk 0:02:52]}  d5 {[%clk 0:03:02]} 13. exd5 {[%clk 0:02:52]}  exd5 {[%clk 0:03:00]} 14. d4 {[%clk 0:02:52]}  b4 {[%clk 0:03:01]} 15. axb4 {[%clk 0:02:52]}  cxb4 {[%clk 0:03:01]} 16. Ne2 {[%clk 0:02:50]}  Ne4 {[%clk 0:03:02]} 17. Qd3 {[%clk 0:02:49]}  Rac8 {[%clk 0:03:03]} 18. Rec1 {[%clk 0:02:39]}  Rfe8 {[%clk 0:02:55]} 19. Nd2 {[%clk 0:02:31]}  Nxd2 {[%clk 0:02:46]} 20. Qxd2 {[%clk 0:02:30]}  Qb6 {[%clk 0:02:45]} 21. c3 {[%clk 0:02:27]}  b3 {[%clk 0:02:39]} 22. Nf4 {[%clk 0:02:21]}  Nf6 {[%clk 0:02:38]} 23. Qe2 {[%clk 0:02:20]}  a5 {[%clk 0:02:36]} 24. Nh5 {[%clk 0:02:20]}  Ne4 {[%clk 0:02:34]} 25. Qg4 {[%clk 0:02:12]}  g6 {[%clk 0:02:34]} 26. Nf4 {[%clk 0:01:13]}  Bf8 {[%clk 0:02:34]} 27. Bxe4 {[%clk 0:01:08]}  dxe4 {[%clk 0:02:22]} 28. Qd7 {[%clk 0:01:07]}  Red8 {[%clk 0:02:02]} 29. Qa4 {[%clk 0:01:04]}  Ra8 {[%clk 0:02:01]} 30. Re1 {[%clk 0:01:01]}  Bc6 {[%clk 0:01:58]} 31. d5 {[%clk 0:00:57]}  Bxa4 {[%clk 0:01:45]} 32. Bxb6 {[%clk 0:00:56]}  Rdb8 {[%clk 0:01:45]} 33. Bc7 {[%clk 0:00:51]}  Rb7 {[%clk 0:01:45]} 34. Rxa4 {[%clk 0:00:48]}  Rxc7 {[%clk 0:01:44]} 35. Rexe4 {[%clk 0:00:45]}  Rb8 {[%clk 0:01:34]} 36. Rxa5 {[%clk 0:00:42]}  Bg7 {[%clk 0:01:25]} 37. Ne2 {[%clk 0:00:38]}  f5 {[%clk 0:01:18]} 38. Re3 {[%clk 0:00:35]}  Bf8 {[%clk 0:01:15]} 39. Rd3 {[%clk 0:00:32]}  Re8 {[%clk 0:01:12]} 40. Nd4 {[%clk 0:00:29]}  Re1+ {[%clk 0:01:05]} 41. Kg2 {[%clk 0:00:29]}  Rb7 {[%clk 0:01:06]} 42. c4 {[%clk 0:00:22]}  Rc1 {[%clk 0:01:00]} 43. Ra8 {[%clk 0:00:18]}  Kf7 {[%clk 0:00:58]} 44. Nc6 {[%clk 0:00:16]}  Kg7 {[%clk 0:00:53]} 45. Nd8 {[%clk 0:00:11]}  Re7 {[%clk 0:00:49]} 46. Ne6+ {[%clk 0:00:10]}  Rxe6 {[%clk 0:00:50]} 47. dxe6 {[%clk 0:00:10]}  Bc5 {[%clk 0:00:50]} 48. Rd7+ {[%clk 0:00:10]}  Kf6 {[%clk 0:00:50]} 49. Re8 {[%clk 0:00:09]}  Rc2 {[%clk 0:00:49]} 50. e7 {[%clk 0:00:09]}  Rxf2+ {[%clk 0:00:48]} 51. Kh1 {[%clk 0:00:10]}  Rf1+ {[%clk 0:00:44]} 52. Kg2 {[%clk 0:00:10]}  Rf2+ {[%clk 0:00:44]} 53. Kh1 {[%clk 0:00:09]}  Rf1+ {[%clk 0:00:38]} 54. Kg2 {[%clk 0:00:09]}  Rf2+ {[%clk 0:00:39]} 1/2-1/2


[Site "https://www.chess.com"]

[Event "Titled Tuesday Blitz January 10 Early 2023"]
[White "Jaskolka, Tomasz"]
[Black "Vlassov, Nikolai"]
[WhiteFideId "1170791"]
[BlackFideId "4103360"]
[WhiteElo "2238"]
[BlackElo "2283"]
[Result "0-1"]
[Round "11"]
[TimeControl "180+2"]
[Date "2023.01.10"]
[WhiteClock "0:00:02"]
[BlackClock "0:00:12"]

1. d4 {[%clk 0:03:00]}  Nf6 {[%clk 0:02:58]} 2. c4 {[%clk 0:03:01]}  Nc6 {[%clk 0:02:57]} 3. Nf3 {[%clk 0:02:50]}  e6 {[%clk 0:02:57]} 4. g3 {[%clk 0:02:49]}  Bb4+ {[%clk 0:02:56]} 5. Nbd2 {[%clk 0:02:48]}  d6 {[%clk 0:02:55]} 6. Bg2 {[%clk 0:02:48]}  a5 {[%clk 0:02:52]} 7. O-O {[%clk 0:02:48]}  e5 {[%clk 0:02:52]} 8. d5 {[%clk 0:02:45]}  Nb8 {[%clk 0:02:51]} 9. a3 {[%clk 0:02:44]}  Bc5 {[%clk 0:02:51]} 10. b3 {[%clk 0:02:43]}  e4 {[%clk 0:02:42]} 11. Ng5 {[%clk 0:02:39]}  e3 {[%clk 0:02:42]} 12. Nde4 {[%clk 0:02:35]}  exf2+ {[%clk 0:02:40]} 13. Kh1 {[%clk 0:02:35]}  h6 {[%clk 0:02:28]} 14. Nxc5 {[%clk 0:02:31]}  hxg5 {[%clk 0:02:27]} 15. Nd3 {[%clk 0:02:31]}  Rxh2+ {[%clk 0:02:00]} 16. Kxh2 {[%clk 0:02:25]}  Ng4+ {[%clk 0:02:01]} 17. Kh1 {[%clk 0:02:24]}  Qf6 {[%clk 0:02:01]} 18. Bxg5 {[%clk 0:02:09]}  Qxg5 {[%clk 0:01:56]} 19. Nxf2 {[%clk 0:02:07]}  Qh5+ {[%clk 0:01:39]} 20. Nh3 {[%clk 0:02:06]}  Ne3 {[%clk 0:01:38]} 21. Qd3 {[%clk 0:01:48]}  Nxg2 {[%clk 0:01:38]} 22. Qe4+ {[%clk 0:01:38]}  Kf8 {[%clk 0:01:32]} 23. Qxg2 {[%clk 0:01:31]}  Qxh3+ {[%clk 0:01:25]} 24. Qxh3 {[%clk 0:01:31]}  Bxh3 {[%clk 0:01:26]} 25. Rf4 {[%clk 0:01:31]}  g5 {[%clk 0:01:19]} 26. Rf3 {[%clk 0:01:18]}  Nd7 {[%clk 0:01:17]} 27. Kh2 {[%clk 0:01:15]}  Bg4 {[%clk 0:01:14]} 28. Re3 {[%clk 0:01:14]}  Ne5 {[%clk 0:01:13]} 29. Rf1 {[%clk 0:01:11]}  Ke7 {[%clk 0:01:10]} 30. Kg2 {[%clk 0:01:01]}  Rh8 {[%clk 0:01:04]} 31. Kf2 {[%clk 0:00:59]}  f5 {[%clk 0:00:59]} 32. Ke1 {[%clk 0:00:57]}  Kf6 {[%clk 0:00:57]} 33. Rc3 {[%clk 0:00:50]}  b6 {[%clk 0:00:55]} 34. b4 {[%clk 0:00:50]}  axb4 {[%clk 0:00:55]} 35. axb4 {[%clk 0:00:51]}  Ra8 {[%clk 0:00:39]} 36. c5 {[%clk 0:00:46]}  Ra4 {[%clk 0:00:30]} 37. cxb6 {[%clk 0:00:40]}  cxb6 {[%clk 0:00:30]} 38. Rb3 {[%clk 0:00:37]}  Nc4 {[%clk 0:00:28]} 39. Rb1 {[%clk 0:00:15]}  Ke5 {[%clk 0:00:25]} 40. Rc1 {[%clk 0:00:12]}  b5 {[%clk 0:00:24]} 41. Kf2 {[%clk 0:00:12]}  Rxb4 {[%clk 0:00:24]} 42. Rfd1 {[%clk 0:00:12]}  Rb2 {[%clk 0:00:23]} 43. Re1 {[%clk 0:00:12]}  Kxd5 {[%clk 0:00:22]} 44. Red1+ {[%clk 0:00:12]}  Kc5 {[%clk 0:00:23]} 45. Re1 {[%clk 0:00:13]}  d5 {[%clk 0:00:23]} 46. Kf1 {[%clk 0:00:12]}  d4 {[%clk 0:00:23]} 47. Ra1 {[%clk 0:00:12]}  Ne3+ {[%clk 0:00:20]} 48. Kf2 {[%clk 0:00:12]}  Nc2 {[%clk 0:00:19]} 49. Rec1 {[%clk 0:00:10]}  Kd5 {[%clk 0:00:18]} 50. Ra5 {[%clk 0:00:09]}  d3 {[%clk 0:00:16]} 51. exd3 {[%clk 0:00:08]}  Nb4+ {[%clk 0:00:15]} 52. Kg1 {[%clk 0:00:06]}  Nxd3 {[%clk 0:00:15]} 53. Rc3 {[%clk 0:00:06]}  Kd4 {[%clk 0:00:15]} 54. Raa3 {[%clk 0:00:02]}  Be2 {[%clk 0:00:13]} 55. Rc8 {[%clk 0:00:02]}  b4 {[%clk 0:00:13]} 56. Rd8+ {[%clk 0:00:02]}  Ke3 {[%clk 0:00:13]} 57. Re8+ {[%clk 0:00:02]}  Kf3 {[%clk 0:00:14]} 58. Ra5 {[%clk 0:00:02]}  Kxg3 {[%clk 0:00:12]} 0-1


[Site "https://www.chess.com"]

[Event "Titled Tuesday Blitz January 10 Early 2023"]
[White "Oro, Faustino"]
[Black "Sreyas Payyappat"]
[WhiteFideId "20000197"]
[BlackFideId "46674969"]
[WhiteElo "2269"]
[BlackElo "2076"]
[Result "1-0"]
[Round "11"]
[TimeControl "180+2"]
[Date "2023.01.10"]
[WhiteClock "0:00:38"]
[BlackClock "0:00:12"]

1. e4 {[%clk 0:03:00]}  c5 {[%clk 0:02:59]} 2. Nf3 {[%clk 0:03:00]}  d6 {[%clk 0:03:00]} 3. d4 {[%clk 0:03:00]}  cxd4 {[%clk 0:03:01]} 4. Nxd4 {[%clk 0:03:00]}  Nf6 {[%clk 0:03:01]} 5. Nc3 {[%clk 0:03:01]}  a6 {[%clk 0:03:00]} 6. a3 {[%clk 0:02:59]}  Nc6 {[%clk 0:02:58]} 7. f3 {[%clk 0:02:49]}  e5 {[%clk 0:02:57]} 8. Nb3 {[%clk 0:02:49]}  Be6 {[%clk 0:02:55]} 9. Be3 {[%clk 0:02:48]}  Be7 {[%clk 0:02:53]} 10. Nd5 {[%clk 0:02:47]}  O-O {[%clk 0:02:47]} 11. Qd2 {[%clk 0:02:38]}  b5 {[%clk 0:02:28]} 12. O-O-O {[%clk 0:02:33]}  Rc8 {[%clk 0:02:23]} 13. Kb1 {[%clk 0:02:26]}  Bxd5 {[%clk 0:02:18]} 14. exd5 {[%clk 0:02:26]}  Nb8 {[%clk 0:02:18]} 15. Bd3 {[%clk 0:02:17]}  Nbd7 {[%clk 0:02:17]} 16. g4 {[%clk 0:02:16]}  h6 {[%clk 0:02:11]} 17. Bxh6 {[%clk 0:01:58]}  gxh6 {[%clk 0:02:08]} 18. Qxh6 {[%clk 0:01:59]}  e4 {[%clk 0:02:08]} 19. g5 {[%clk 0:00:57]}  Nh7 {[%clk 0:00:58]} 20. Bxe4 {[%clk 0:00:49]}  Nxg5 {[%clk 0:00:58]} 21. Rdg1 {[%clk 0:00:49]}  f5 {[%clk 0:00:42]} 22. h4 {[%clk 0:00:45]}  Bf6 {[%clk 0:00:14]} 23. hxg5 {[%clk 0:00:41]}  Bg7 {[%clk 0:00:13]} 24. Qe6+ {[%clk 0:00:38]}  Rf7 {[%clk 0:00:13]} 25. g6 {[%clk 0:00:39]}  Ne5 {[%clk 0:00:12]} 26. gxf7+ {[%clk 0:00:38]} 1-0


[Site "https://www.chess.com"]

[Event "Titled Tuesday Blitz January 10 Early 2023"]
[White "Arngrimsson, Dagur"]
[Black "Erzhanov, Arman"]
[WhiteFideId "2301288"]
[BlackFideId "4138821"]
[WhiteElo "2370"]
[BlackElo "2228"]
[Result "1-0"]
[Round "11"]
[TimeControl "180+2"]
[Date "2023.01.10"]
[WhiteClock "0:00:10"]
[BlackClock "0:01:21"]

1. d4 {[%clk 0:02:30]}  d6 {[%clk 0:03:00]} 2. c4 {[%clk 0:02:28]}  e5 {[%clk 0:03:00]} 3. dxe5 {[%clk 0:02:19]}  dxe5 {[%clk 0:03:00]} 4. Qxd8+ {[%clk 0:02:16]}  Kxd8 {[%clk 0:03:01]} 5. g3 {[%clk 0:02:08]}  c6 {[%clk 0:03:02]} 6. Bg2 {[%clk 0:02:03]}  Be6 {[%clk 0:03:02]} 7. b3 {[%clk 0:01:59]}  Nd7 {[%clk 0:03:03]} 8. Bb2 {[%clk 0:01:55]}  f6 {[%clk 0:03:01]} 9. Nd2 {[%clk 0:01:52]}  Bb4 {[%clk 0:03:01]} 10. O-O-O {[%clk 0:01:47]}  Kc7 {[%clk 0:02:58]} 11. Ngf3 {[%clk 0:01:37]}  a5 {[%clk 0:02:56]} 12. Ne4 {[%clk 0:01:29]}  Nh6 {[%clk 0:02:53]} 13. a3 {[%clk 0:01:21]}  Be7 {[%clk 0:02:52]} 14. Rd2 {[%clk 0:01:09]}  a4 {[%clk 0:02:51]} 15. b4 {[%clk 0:00:54]}  Bxc4 {[%clk 0:02:49]} 16. Rhd1 {[%clk 0:00:54]}  Rhd8 {[%clk 0:02:39]} 17. Nd6 {[%clk 0:00:41]}  Bxe2 {[%clk 0:01:56]} 18. Ne8+ {[%clk 0:00:19]}  Kb6 {[%clk 0:01:36]} 19. Rxd7 {[%clk 0:00:17]}  Bxd1 {[%clk 0:01:32]} 20. Rxe7 {[%clk 0:00:09]}  Bb3 {[%clk 0:01:12]} 21. Nxg7 {[%clk 0:00:07]}  Re8 {[%clk 0:01:12]} 22. Rxe8 {[%clk 0:00:05]}  Rxe8 {[%clk 0:01:11]} 23. Nxe8 {[%clk 0:00:06]}  Ng4 {[%clk 0:01:10]} 24. Nd6 {[%clk 0:00:05]}  Nxf2 {[%clk 0:01:10]} 25. Nd2 {[%clk 0:00:04]}  Nd3+ {[%clk 0:01:10]} 26. Kb1 {[%clk 0:00:03]}  Be6 {[%clk 0:01:09]} 27. N2c4+ {[%clk 0:00:02]}  Kc7 {[%clk 0:01:08]} 28. Kc2 {[%clk 0:00:02]}  b5 {[%clk 0:01:08]} 29. Kxd3 {[%clk 0:00:02]}  bxc4+ {[%clk 0:01:08]} 30. Ke4 {[%clk 0:00:02]}  Bf5+ {[%clk 0:01:09]} 31. Kxf5 {[%clk 0:00:02]}  Kxd6 {[%clk 0:01:10]} 32. Kxf6 {[%clk 0:00:03]}  c3 {[%clk 0:01:10]} 33. Bxc3 {[%clk 0:00:03]}  e4 {[%clk 0:01:11]} 34. Bd2 {[%clk 0:00:03]}  c5 {[%clk 0:01:12]} 35. Kf5 {[%clk 0:00:04]}  e3 {[%clk 0:01:12]} 36. Bxe3 {[%clk 0:00:03]}  cxb4 {[%clk 0:01:13]} 37. axb4 {[%clk 0:00:04]}  a3 {[%clk 0:01:13]} 38. Bd4 {[%clk 0:00:04]}  a2 {[%clk 0:01:14]} 39. Ba1 {[%clk 0:00:03]}  Ke7 {[%clk 0:01:14]} 40. Bd5 {[%clk 0:00:03]}  h5 {[%clk 0:01:15]} 41. Bxa2 {[%clk 0:00:04]}  Kd6 {[%clk 0:01:16]} 42. Kg5 {[%clk 0:00:04]}  Kc6 {[%clk 0:01:17]} 43. Kxh5 {[%clk 0:00:05]}  Kb5 {[%clk 0:01:18]} 44. Kg4 {[%clk 0:00:06]}  Kxb4 {[%clk 0:01:19]} 45. h4 {[%clk 0:00:07]}  Ka3 {[%clk 0:01:19]} 46. h5 {[%clk 0:00:08]}  Kxa2 {[%clk 0:01:20]} 47. Bf6 {[%clk 0:00:08]}  Kb3 {[%clk 0:01:20]} 48. h6 {[%clk 0:00:08]}  Kc4 {[%clk 0:01:21]} 49. h7 {[%clk 0:00:09]}  Kd5 {[%clk 0:01:21]} 50. h8=Q {[%clk 0:00:10]}  Ke6 {[%clk 0:01:21]} 51. Qg8+ {[%clk 0:00:10]} 1-0


[Site "https://www.chess.com"]

[Event "Titled Tuesday Blitz January 10 Early 2023"]
[White "Derjabin, Ilja"]
[Black "Jimenez, Joaquin"]
[WhiteFideId "14104768"]
[BlackFideId "109860"]
[WhiteElo "2333"]
[BlackElo "2195"]
[Result "1/2-1/2"]
[Round "11"]
[TimeControl "180+2"]
[Date "2023.01.10"]
[WhiteClock "0:01:20"]
[BlackClock "0:00:53"]

1. d4 {[%clk 0:03:00]}  Nf6 {[%clk 0:02:50]} 2. c4 {[%clk 0:03:00]}  g6 {[%clk 0:02:48]} 3. Nc3 {[%clk 0:02:59]}  Bg7 {[%clk 0:02:46]} 4. e4 {[%clk 0:02:58]}  d6 {[%clk 0:02:44]} 5. Nge2 {[%clk 0:02:57]}  c5 {[%clk 0:02:42]} 6. d5 {[%clk 0:02:58]}  O-O {[%clk 0:02:40]} 7. Ng3 {[%clk 0:02:57]}  e6 {[%clk 0:02:40]} 8. Be2 {[%clk 0:02:57]}  exd5 {[%clk 0:02:40]} 9. cxd5 {[%clk 0:02:58]}  a6 {[%clk 0:02:38]} 10. a4 {[%clk 0:02:58]}  b6 {[%clk 0:02:38]} 11. O-O {[%clk 0:02:57]}  Nbd7 {[%clk 0:02:37]} 12. f4 {[%clk 0:02:57]}  Re8 {[%clk 0:02:35]} 13. e5 {[%clk 0:02:57]}  dxe5 {[%clk 0:02:35]} 14. f5 {[%clk 0:02:58]}  Bb7 {[%clk 0:02:29]} 15. Bg5 {[%clk 0:02:54]}  h6 {[%clk 0:02:27]} 16. fxg6 {[%clk 0:02:54]}  hxg5 {[%clk 0:02:21]} 17. gxf7+ {[%clk 0:02:54]}  Kxf7 {[%clk 0:02:21]} 18. Nf5 {[%clk 0:02:50]}  Kg8 {[%clk 0:02:19]} 19. Qd2 {[%clk 0:02:40]}  Nh7 {[%clk 0:02:09]} 20. Bc4 {[%clk 0:02:31]}  Ndf6 {[%clk 0:02:01]} 21. Rae1 {[%clk 0:02:15]}  Qd7 {[%clk 0:01:49]} 22. h4 {[%clk 0:02:03]}  gxh4 {[%clk 0:01:40]} 23. Nxh4 {[%clk 0:01:54]}  Qg4 {[%clk 0:01:20]} 24. Qf2 {[%clk 0:01:37]}  Qxc4 {[%clk 0:01:18]} 25. Ne4 {[%clk 0:01:36]}  Qd4 {[%clk 0:01:12]} 26. Re3 {[%clk 0:01:34]}  Rf8 {[%clk 0:01:03]} 27. Nf5 {[%clk 0:01:32]}  Nxe4 {[%clk 0:00:56]} 28. Ne7+ {[%clk 0:01:31]}  Kh8 {[%clk 0:00:53]} 29. Ng6+ {[%clk 0:01:31]}  Kg8 {[%clk 0:00:53]} 30. Ne7+ {[%clk 0:01:19]}  Kh8 {[%clk 0:00:53]} 31. Ng6+ {[%clk 0:01:20]}  Kg8 {[%clk 0:00:53]} 32. Ne7+ {[%clk 0:01:20]} 1/2-1/2


[Site "https://www.chess.com"]

[Event "Titled Tuesday Blitz January 10 Early 2023"]
[White "Kvaloy, Aksel Bu"]
[Black "Andreev, Konstantin"]
[WhiteFideId "1528815"]
[BlackFideId "24239305"]
[WhiteElo "2321"]
[BlackElo "2195"]
[Result "1-0"]
[Round "11"]
[TimeControl "180+2"]
[Date "2023.01.10"]
[WhiteClock "0:00:09"]
[BlackClock "0:00:20"]

1. d4 {[%clk 0:03:00]}  Nf6 {[%clk 0:02:59]} 2. c4 {[%clk 0:03:00]}  e6 {[%clk 0:03:00]} 3. g3 {[%clk 0:03:00]}  d5 {[%clk 0:02:59]} 4. Nf3 {[%clk 0:03:01]}  Bb4+ {[%clk 0:02:57]} 5. Bd2 {[%clk 0:03:01]}  a5 {[%clk 0:02:54]} 6. Bg2 {[%clk 0:03:00]}  O-O {[%clk 0:02:53]} 7. O-O {[%clk 0:03:00]}  Be7 {[%clk 0:02:50]} 8. Qc2 {[%clk 0:02:58]}  c6 {[%clk 0:02:48]} 9. Bf4 {[%clk 0:02:57]}  Nbd7 {[%clk 0:02:48]} 10. Nbd2 {[%clk 0:02:49]}  h6 {[%clk 0:02:38]} 11. e4 {[%clk 0:02:48]}  dxe4 {[%clk 0:02:37]} 12. Nxe4 {[%clk 0:02:49]}  Nxe4 {[%clk 0:02:36]} 13. Qxe4 {[%clk 0:02:50]}  Nf6 {[%clk 0:02:37]} 14. Qe2 {[%clk 0:02:50]}  c5 {[%clk 0:02:35]} 15. Rfd1 {[%clk 0:02:48]}  cxd4 {[%clk 0:02:33]} 16. Nxd4 {[%clk 0:02:49]}  Qb6 {[%clk 0:02:30]} 17. Nb5 {[%clk 0:02:47]}  Bd7 {[%clk 0:02:26]} 18. Bc7 {[%clk 0:02:32]}  Qa6 {[%clk 0:02:26]} 19. Bd6 {[%clk 0:02:32]}  Bxd6 {[%clk 0:01:55]} 20. Rxd6 {[%clk 0:02:33]}  Bc6 {[%clk 0:01:56]} 21. Bxc6 {[%clk 0:02:28]}  bxc6 {[%clk 0:01:57]} 22. Nc7 {[%clk 0:02:28]}  Qb7 {[%clk 0:01:58]} 23. Nxa8 {[%clk 0:02:28]}  Rxa8 {[%clk 0:01:59]} 24. Rad1 {[%clk 0:02:28]}  c5 {[%clk 0:01:58]} 25. Rd8+ {[%clk 0:02:26]}  Rxd8 {[%clk 0:01:58]} 26. Rxd8+ {[%clk 0:02:27]}  Kh7 {[%clk 0:01:59]} 27. Qd3+ {[%clk 0:02:27]}  g6 {[%clk 0:01:59]} 28. Qc3 {[%clk 0:02:28]}  Qe7 {[%clk 0:01:49]} 29. Rd1 {[%clk 0:02:24]}  e5 {[%clk 0:01:46]} 30. Re1 {[%clk 0:02:19]}  e4 {[%clk 0:01:46]} 31. Qxa5 {[%clk 0:02:15]}  Ng4 {[%clk 0:01:43]} 32. Qc3 {[%clk 0:02:13]}  f5 {[%clk 0:01:38]} 33. f3 {[%clk 0:02:09]}  Nf6 {[%clk 0:01:33]} 34. a4 {[%clk 0:01:59]}  Qd6 {[%clk 0:01:30]} 35. fxe4 {[%clk 0:01:56]}  Nxe4 {[%clk 0:01:31]} 36. Qe3 {[%clk 0:01:53]}  Qa6 {[%clk 0:01:29]} 37. b3 {[%clk 0:01:53]}  Qb6 {[%clk 0:01:28]} 38. Rd1 {[%clk 0:01:52]}  g5 {[%clk 0:01:21]} 39. Rd7+ {[%clk 0:01:46]}  Kg6 {[%clk 0:01:20]} 40. Qd3 {[%clk 0:01:40]}  Qf6 {[%clk 0:01:17]} 41. g4 {[%clk 0:01:16]}  Qa1+ {[%clk 0:01:04]} 42. Qd1 {[%clk 0:01:15]}  Qb2 {[%clk 0:00:59]} 43. gxf5+ {[%clk 0:00:57]}  Kf6 {[%clk 0:00:59]} 44. Qf3 {[%clk 0:00:34]}  Qc1+ {[%clk 0:00:57]} 45. Rd1 {[%clk 0:00:33]}  Qc2 {[%clk 0:00:53]} 46. a5 {[%clk 0:00:34]}  g4 {[%clk 0:00:50]} 47. Qxg4 {[%clk 0:00:23]}  Qf2+ {[%clk 0:00:49]} 48. Kh1 {[%clk 0:00:24]}  Qe3 {[%clk 0:00:43]} 49. Qh4+ {[%clk 0:00:24]}  Ke5 {[%clk 0:00:41]} 50. Qe7+ {[%clk 0:00:22]}  Kf4 {[%clk 0:00:41]} 51. Qc7+ {[%clk 0:00:20]}  Kf3 {[%clk 0:00:31]} 52. Rf1+ {[%clk 0:00:18]}  Ke2 {[%clk 0:00:31]} 53. Qf4 {[%clk 0:00:14]}  Qd3 {[%clk 0:00:27]} 54. Qf3+ {[%clk 0:00:12]}  Qxf3+ {[%clk 0:00:27]} 55. Rxf3 {[%clk 0:00:13]}  Kxf3 {[%clk 0:00:27]} 56. a6 {[%clk 0:00:13]}  Kf2 {[%clk 0:00:27]} 57. a7 {[%clk 0:00:13]}  Kf1 {[%clk 0:00:27]} 58. h4 {[%clk 0:00:14]}  Nf2+ {[%clk 0:00:19]} 59. Kh2 {[%clk 0:00:12]}  Ng4+ {[%clk 0:00:19]} 60. Kg3 {[%clk 0:00:12]}  Nf6 {[%clk 0:00:20]} 61. a8=Q {[%clk 0:00:08]}  h5 {[%clk 0:00:20]} 62. Qf3+ {[%clk 0:00:09]} 1-0


[Site "https://www.chess.com"]

[Event "Titled Tuesday Blitz January 10 Early 2023"]
[White "Perez Rodriguez, Jennifer"]
[Black "Ladan, Nicholas"]
[WhiteFideId "3507831"]
[BlackFideId "30918855"]
[WhiteElo "2242"]
[BlackElo "2228"]
[Result "0-1"]
[Round "11"]
[TimeControl "180+2"]
[Date "2023.01.10"]
[WhiteClock "0:00:04"]
[BlackClock "0:00:04"]

1. e4 {[%clk 0:03:00]}  e5 {[%clk 0:02:59]} 2. Nf3 {[%clk 0:02:58]}  Nc6 {[%clk 0:03:00]} 3. Bc4 {[%clk 0:02:59]}  Nf6 {[%clk 0:02:59]} 4. d3 {[%clk 0:02:59]}  h6 {[%clk 0:02:55]} 5. O-O {[%clk 0:02:55]}  d6 {[%clk 0:02:55]} 6. c3 {[%clk 0:02:54]}  g6 {[%clk 0:02:55]} 7. Re1 {[%clk 0:02:54]}  Bg7 {[%clk 0:02:55]} 8. h3 {[%clk 0:02:55]}  O-O {[%clk 0:02:55]} 9. d4 {[%clk 0:02:55]}  Bd7 {[%clk 0:02:45]} 10. Nbd2 {[%clk 0:02:51]}  Kh8 {[%clk 0:02:33]} 11. Nf1 {[%clk 0:02:47]}  Nh7 {[%clk 0:02:30]} 12. Ng3 {[%clk 0:02:47]}  f5 {[%clk 0:02:25]} 13. exf5 {[%clk 0:02:46]}  Bxf5 {[%clk 0:02:25]} 14. dxe5 {[%clk 0:02:46]}  Nxe5 {[%clk 0:02:24]} 15. Nxe5 {[%clk 0:02:45]}  dxe5 {[%clk 0:02:21]} 16. Qxd8 {[%clk 0:02:44]}  Raxd8 {[%clk 0:02:22]} 17. Nxf5 {[%clk 0:02:42]}  gxf5 {[%clk 0:02:19]} 18. f3 {[%clk 0:02:34]}  c6 {[%clk 0:01:54]} 19. Be3 {[%clk 0:02:34]}  a6 {[%clk 0:01:47]} 20. a4 {[%clk 0:02:30]}  Rfe8 {[%clk 0:01:44]} 21. a5 {[%clk 0:02:30]}  Nf8 {[%clk 0:01:36]} 22. Bb6 {[%clk 0:02:18]}  Rd2 {[%clk 0:01:34]} 23. Re2 {[%clk 0:02:11]}  Rxe2 {[%clk 0:01:31]} 24. Bxe2 {[%clk 0:02:10]}  Nd7 {[%clk 0:01:32]} 25. Be3 {[%clk 0:02:09]}  e4 {[%clk 0:01:23]} 26. fxe4 {[%clk 0:02:00]}  Rxe4 {[%clk 0:01:23]} 27. Kf2 {[%clk 0:02:00]}  f4 {[%clk 0:01:20]} 28. Ba7 {[%clk 0:01:55]}  Ne5 {[%clk 0:01:08]} 29. Rd1 {[%clk 0:01:49]}  Ra4 {[%clk 0:01:07]} 30. Rd8+ {[%clk 0:01:22]}  Kh7 {[%clk 0:01:06]} 31. Rb8 {[%clk 0:01:00]}  Rxa5 {[%clk 0:00:58]} 32. Rxb7 {[%clk 0:01:00]}  Kg6 {[%clk 0:00:56]} 33. Bd4 {[%clk 0:00:58]}  Bf6 {[%clk 0:00:45]} 34. Ra7 {[%clk 0:00:53]}  Ra2 {[%clk 0:00:35]} 35. Rb7 {[%clk 0:00:45]}  a5 {[%clk 0:00:22]} 36. Rb6 {[%clk 0:00:43]}  Kf5 {[%clk 0:00:17]} 37. Ke1 {[%clk 0:00:29]}  a4 {[%clk 0:00:16]} 38. Kd1 {[%clk 0:00:24]}  Nd7 {[%clk 0:00:07]} 39. Rb7 {[%clk 0:00:19]}  Bxd4 {[%clk 0:00:06]} 40. Rxd7 {[%clk 0:00:17]}  Be3 {[%clk 0:00:04]} 41. Bd3+ {[%clk 0:00:17]}  Kg5 {[%clk 0:00:03]} 42. Rg7+ {[%clk 0:00:13]}  Kf6 {[%clk 0:00:03]} 43. Rg6+ {[%clk 0:00:14]}  Ke5 {[%clk 0:00:04]} 44. Rxc6 {[%clk 0:00:15]}  Rxb2 {[%clk 0:00:04]} 45. Ke1 {[%clk 0:00:09]}  Rxg2 {[%clk 0:00:04]} 46. Ra6 {[%clk 0:00:08]}  f3 {[%clk 0:00:04]} 47. Rxa4 {[%clk 0:00:06]}  Rg1+ {[%clk 0:00:03]} 48. Bf1 {[%clk 0:00:05]}  Rh1 {[%clk 0:00:03]} 49. Ra5+ {[%clk 0:00:05]}  Kf4 {[%clk 0:00:04]} 50. Ra4+ {[%clk 0:00:05]}  Kg3 {[%clk 0:00:04]} 51. Rg4+ {[%clk 0:00:05]}  Kh2 {[%clk 0:00:04]} 52. Re4 {[%clk 0:00:05]}  Bc5 {[%clk 0:00:03]} 53. Rf4 {[%clk 0:00:04]}  f2+ {[%clk 0:00:03]} 54. Ke2 {[%clk 0:00:04]}  Kg3 {[%clk 0:00:04]} 55. Rg4+ {[%clk 0:00:04]}  Kh2 {[%clk 0:00:03]} 56. Rg6 {[%clk 0:00:05]}  Rg1 {[%clk 0:00:04]} 57. Rxh6 {[%clk 0:00:06]}  Rg7 {[%clk 0:00:03]} 58. Rc6 {[%clk 0:00:06]}  Re7+ {[%clk 0:00:04]} 59. Kd3 {[%clk 0:00:05]}  Ba7 {[%clk 0:00:05]} 60. Rf6 {[%clk 0:00:05]}  Kg1 {[%clk 0:00:05]} 61. Be2 {[%clk 0:00:04]}  Rd7+ {[%clk 0:00:05]} 62. Kc4 {[%clk 0:00:04]}  Re7 {[%clk 0:00:05]} 63. Kd3 {[%clk 0:00:03]}  Re3+ {[%clk 0:00:05]} 64. Kd2 {[%clk 0:00:03]}  Rxh3 {[%clk 0:00:05]} 65. Rg6+ {[%clk 0:00:03]}  Kh2 {[%clk 0:00:05]} 66. Rf6 {[%clk 0:00:03]}  Be3+ {[%clk 0:00:05]} 67. Kd1 {[%clk 0:00:03]}  Kg3 {[%clk 0:00:05]} 68. Rf3+ {[%clk 0:00:03]}  Kg2 {[%clk 0:00:04]} 69. Rg3+ {[%clk 0:00:04]}  Rxg3 {[%clk 0:00:04]} 0-1


[Site "https://www.chess.com"]